fUST/lending_fUST_20251025
["ID","MTS","AMOUNT","RATE_DAILY","PERIOD"]
[392353983,1761396639256,-500.0,0.00018438,2]
[392353984,1761396639268,-500.0,0.00018438,2]
[392353985,1761396639278,-500.0,0.00018438,2]
[392353986,1761396639287,-500.0,0.00018438,2]
[392353987,1761396639298,-500.0,0.00018438,2]
[392353988,1761396639308,-500.0,0.00018438,2]
[392353989,1761396639318,-569.28,0.00018438,2]
[392353990,1761396639328,-526.14,0.00018438,2]
[392353991,1761396639338,-509.78,0.00018438,2]
[392353992,1761396639350,-500.0,0.00018438,2]
[392353993,1761396639360,-500.0,0.00018438,2]
[392353994,1761396639370,-500.0,0.00018438,2]
[392353995,1761396639379,-500.0,0.00018438,2]
[392353996,1761396639389,-500.0,0.00018438,2]
[392353997,1761396639398,-487.70220766,0.00018438,2]
[392353998,1761396639408,-500.0,0.00018438,2]
[392353999,1761396639418,-500.0,0.00018438,2]
[392354000,1761396639428,-501.73,0.00018438,2]
[392354001,1761396639437,-500.0,0.00018438,2]
[392354002,1761396639448,-500.0,0.00018438,2]
[392354003,1761396639458,-500.0,0.00018438,2]
[392354004,1761396639467,-500.0,0.00018438,2]
[392354005,1761396639478,-51208.22754149,0.00018439,2]
[392354006,1761396639487,-900.0,0.00018456,2]
[392354007,1761396639496,-143.66134413,0.00018473,2]
[392354008,1761396639705,-498.142,0.00018437,2]
[392354737,1761396658320,150.0,0.00017279,30]
[392354738,1761396658745,-521.01785965,0.00018435,2]
[392354739,1761396658774,-621.94,0.00018435,2]
[392354740,1761396658803,-500.0,0.00018436,2]
[392354741,1761396658834,-500.0,0.00018436,2]
[392354742,1761396658863,-565.78,0.00018436,2]
[392354743,1761396658895,-1059.81,0.00018436,2]
[392354744,1761396658925,-938.2542807,0.00018436,2]
[392354745,1761396658995,150.0,0.00018101,30]
[392354746,1761396659079,-586.4057193,0.00018436,2]
[392354747,1761396659316,150.0,0.00018924,30]
[392354748,1761396659772,173.67,0.00019747,30]
[392354749,1761396664678,-1142.33,0.00018435,2]
[392354750,1761396664710,-427.38258036,0.00018436,2]
[392354751,1761396664745,-1071.77,0.00018436,2]
[392354752,1761396664775,-2084.5,0.00018436,2]
[392354753,1761396664886,-548.04483928,0.00018436,2]
[392354754,1761396667629,-1348.62516072,0.00018436,2]
[392354755,1761396667661,-300.0,0.00018436,2]
[392354756,1761396667691,-1.858,0.00018437,2]
[392354757,1761396667720,-500.0,0.00018437,2]
[392354758,1761396667750,-500.0,0.00018437,2]
[392354759,1761396667780,-500.0,0.00018437,2]
[392354760,1761396667813,-500.0,0.00018437,2]
[392354761,1761396667845,-624.65,0.00018437,2]
[392354762,1761396668022,-1449.74367856,0.00018437,2]
[392354763,1761396673310,5000.0,0.00018297,2]
[392354764,1761396696470,5000.0,0.00018297,2]
[392354765,1761396716044,-500.0,0.00018435,2]
[392354766,1761396716073,-500.0,0.00018435,2]
[392354767,1761396716102,-500.0,0.00018435,2]
[392354768,1761396716131,-2065.02,0.00018435,2]
[392354769,1761396716160,-577.51,0.00018435,2]
[392354770,1761396716271,-1714.95,0.00018436,2]
[392354771,1761396719280,5000.0,0.00018297,2]
[392354772,1761396721840,-10000.01,0.00018339,2]
[392354773,1761396742314,5000.0,0.00018297,2]
[392354774,1761396755428,1000.0,0.00017412,2]
[392354775,1761396765666,5000.0,0.00018297,2]
[392354776,1761396781494,300000.0,0.00018,2]
[392354777,1761396785283,-187.0428385,0.00018335,2]
[392354778,1761396785315,-1318.9752807,0.00018335,2]
[392354779,1761396785349,-155.32374277,0.00018338,2]
[392354780,1761396785381,-800.0,0.00018338,2]
[392354781,1761396785413,-300.0,0.00018338,2]
[392354782,1761396791124,4477.32627606,0.00018339,2]
[392354783,1761396797059,-522.67372394,0.00018339,2]
[392354784,1761396798524,233.95319957,0.00018338,2]
[392354785,1761396810490,150.0,0.00017297,30]
[392354786,1761396810941,150.0,0.0001812,30]
[392354787,1761396811645,150.0,0.00018944,30]
[392354788,1761396811938,162.9,0.00019768,30]
[392354789,1761396814414,5000.0,0.00018297,2]
[392354790,1761396838053,5000.0,0.00018297,2]
[392354791,1761396882812,729.2467873,0.00018297,2]
[392354792,1761396887574,150.0,0.0001734,30]
[392354793,1761396887979,150.0,0.00018166,30]
[392354794,1761396888510,150.0,0.00018992,30]
[392354795,1761396888915,152.96,0.00019818,30]
[392354796,1761396905600,-273.0,0.00018337,2]
[392354797,1761396905632,-300.0,0.00018337,2]
[392354798,1761396905663,-300.0,0.00018337,2]
[392354799,1761396905696,-1200.0,0.00018337,2]
[392354800,1761396905729,-576.37185083,0.00018338,2]
[392354801,1761396905761,-423.77032677,0.00018338,2]
[392354802,1761396905792,-500.0,0.00018338,2]
[392354803,1761396905822,-507.79703457,0.00018338,2]
[392354804,1761396905852,-500.0,0.00018338,2]
[392354805,1761396905883,-338.13157566,0.00018338,2]
[392354806,1761396911530,-161.86842434,0.00018338,2]
[392354807,1761396911558,-500.0,0.00018338,2]
[392354808,1761396911587,-512.57,0.00018338,2]
[392354809,1761396911616,-339.06260401,0.00018338,2]
[392354810,1761396911730,-2423.59689201,0.00018339,2]
[392354811,1761396917500,-10000.01,0.00018339,2]
[392354812,1761396927662,5000.0,0.00018297,2]
[392354813,1761396935691,223.09905647,0.00017641,2]
[392354814,1761396937656,221.70037084,0.00017623,2]
[392354815,1761396941653,253.37185239,0.00017623,2]
[392354816,1761396950235,3430.95775839,0.00018297,2]
[392354817,1761396967871,150.0,0.00017345,30]
[392354818,1761396968331,150.0,0.00018171,30]
[392354819,1761396969206,150.0,0.00018997,30]
[392354820,1761396969662,150.0,0.00019823,30]
[392354821,1761397046955,150.0,0.00017337,30]
[392354822,1761397047358,150.0,0.00018163,30]
[392354823,1761397047757,150.0,0.00018989,30]
[392354824,1761397048168,150.0,0.00019814,30]
[392354825,1761397068384,3861.5679133,0.00017524,2]
[392354826,1761397146465,-300.0,0.00018334,2]
[392354827,1761397146498,-1222.93944332,0.00018335,2]
[392354828,1761397146531,-163.66248367,0.00018335,2]
[392354829,1761397146559,-1214.81275948,0.00018335,2]
[392354830,1761397146589,-1222.93944331,0.00018336,2]
[392354831,1761397146618,-528.36229713,0.00018336,2]
[392354832,1761397146749,-694.57714618,0.00018336,2]
[392354833,1761397146784,-1222.93944331,0.00018337,2]
[392354834,1761397146812,-1222.93944331,0.00018337,2]
[392354835,1761397146841,-500.0,0.00018338,2]
[392354836,1761397146870,-801.77,0.00018338,2]
[392354837,1761397146901,-725.48,0.00018338,2]
[392354838,1761397146928,-500.0,0.00018338,2]
[392354839,1761397147075,-53.75222676,0.00018338,2]
[392354840,1761397149326,-998.62777324,0.00018338,2]
[392354841,1761397149354,-500.0,0.00018338,2]
[392354842,1761397149384,-1535.68,0.00018338,2]
[392354843,1761397149412,-500.0,0.00018338,2]
[392354844,1761397149442,-500.0,0.00018338,2]
[392354845,1761397149472,-950.31,0.00018338,2]
[392354846,1761397149590,-30.77445352,0.00018338,2]
[392354847,1761397152413,-469.22554648,0.00018338,2]
[392354848,1761397152442,-500.0,0.00018338,2]
[392354849,1761397152470,-500.0,0.00018338,2]
[392354850,1761397152499,-500.0,0.00018338,2]
[392354851,1761397152528,-1634.97,0.00018338,2]
[392354852,1761397152554,-1369.36,0.00018338,2]
[392354853,1761397153111,-52.89890704,0.00018338,2]
[392354854,1761397155372,-447.10109296,0.00018338,2]
[392354855,1761397155403,-500.0,0.00018338,2]
[392354856,1761397155434,-500.0,0.00018338,2]
[392354857,1761397155463,-1407.95,0.00018338,2]
[392354858,1761397155492,-500.0,0.00018338,2]
[392354859,1761397155521,-875.24,0.00018338,2]
[392354860,1761397155637,-1539.42781408,0.00018338,2]
[392354862,1761397265390,500.0,0.00030136,120]
[392354863,1761397276259,500.0,0.00030136,120]
[392354864,1761397309052,-300.0,0.00018327,2]
[392354865,1761397309085,-151.0,0.00018328,2]
[392354866,1761397309118,-151.0,0.00018328,2]
[392354867,1761397309151,-151.0,0.00018328,2]
[392354868,1761397309181,-151.0,0.00018328,2]
[392354869,1761397309214,-151.0,0.00018328,2]
[392354870,1761397309249,-223.39491623,0.00018328,2]
[392354871,1761397309282,-1000.0,0.00018328,2]
[392354872,1761397309313,-1000.0,0.00018328,2]
[392354873,1761397309343,-1000.0,0.00018328,2]
[392354874,1761397309372,-213.96859442,0.00018328,2]
[392354875,1761397309412,-15.2829787,0.00018328,2]
[392354876,1761397309555,-984.7170213,0.00018328,2]
[392354877,1761397309585,-1000.0,0.00018328,2]
[392354878,1761397309615,-1000.0,0.00018328,2]
[392354879,1761397309645,-1000.0,0.00018328,2]
[392354880,1761397309676,-1000.0,0.00018328,2]
[392354881,1761397309813,-1000.0,0.00018328,2]
[392354882,1761397309851,-1000.0,0.00018328,2]
[392354883,1761397309889,-1000.0,0.00018328,2]
[392354884,1761397309923,-1000.0,0.00018328,2]
[392354885,1761397309960,-1000.0,0.00018328,2]
[392354886,1761397310457,-30.5759574,0.00018328,2]
[392354887,1761397310473,-969.4240426,0.00018328,2]
[392354888,1761397310483,-30.5759574,0.00018328,2]
[392354889,1761397310499,-0.01,0.00018328,2]
[392354890,1761397311881,-969.4140426,0.00018328,2]
[392354891,1761397311913,-1000.0,0.00018328,2]
[392354892,1761397311947,-1000.0,0.00018328,2]
[392354893,1761397311977,-1009.84399342,0.00018328,2]
[392354894,1761397312008,-353.3,0.00018329,3]
[392354895,1761397312036,-176.65,0.00018329,3]
[392354896,1761397312065,-82.25318012,0.00018334,2]
[392354897,1761397312181,-817.08756772,0.00018334,2]
[392354898,1761397312210,-1200.0,0.00018337,2]
[392354899,1761397312245,-448.53036485,0.00018337,2]
[392354900,1761397312277,-1008.53,0.00018337,2]
[392354901,1761397312307,-501.50332539,0.00018337,2]
[392354902,1761397312520,-315.58424233,0.00018337,2]
[392354903,1761397312541,-501.50332539,0.00018337,2]
[392354904,1761397312562,-2048.70748408,0.00018337,2]
[392354905,1761397314914,-578.0649482,0.00018337,2]
[392354906,1761397314947,-500.0,0.00018337,2]
[392354907,1761397314979,-500.0,0.00018337,2]
[392354908,1761397315010,-261.21334644,0.00018337,2]
[392354909,1761397315041,-1508.49,0.00018337,2]
[392354910,1761397315073,-511.97822823,0.00018337,2]
[392354911,1761397315108,-808.82695426,0.00018337,2]
[392354912,1761397315308,-662.86304574,0.00018337,2]
[392354913,1761397315339,-500.0,0.00018337,2]
[392354914,1761397315371,-500.0,0.00018337,2]
[392354915,1761397315405,-537.55159984,0.00018337,2]
[392354916,1761397315435,-500.0,0.00018337,2]
[392354917,1761397315464,-500.0,0.00018337,2]
[392354918,1761397315495,-500.0,0.00018337,2]
[392354919,1761397315524,-500.0,0.00018337,2]
[392354920,1761397315557,-688.47070884,0.00018337,2]
[392354921,1761397315978,-3.45393674,0.00018337,2]
[392354922,1761397316006,-218.78535442,0.00018337,2]
[392354923,1761397316016,-596.03,0.00018337,2]
[392354924,1761397316025,-95.89464558,0.00018337,2]
[392354925,1761397320911,-529.95,0.00018329,3]
[392354926,1761397320944,-404.10535442,0.00018337,2]
[392354927,1761397320977,-500.0,0.00018337,2]
[392354928,1761397321009,-500.0,0.00018337,2]
[392354929,1761397321041,-500.0,0.00018337,2]
[392354930,1761397321073,-500.0,0.00018337,2]
[392354931,1761397321108,-500.0,0.00018337,2]
[392354932,1761397321142,-519.68,0.00018337,2]
[392354933,1761397321171,-500.0,0.00018337,2]
[392354934,1761397321201,-500.0,0.00018337,2]
[392354935,1761397321406,-92.53929116,0.00018337,2]
[392354936,1761397326933,-300.0,0.00018336,2]
[392354937,1761397326968,-417.07114818,0.00018337,2]
[392354938,1761397327001,-500.0,0.00018337,2]
[392354939,1761397327032,-500.0,0.00018337,2]
[392354940,1761397327061,-500.0,0.00018337,2]
[392354941,1761397327094,-500.0,0.00018337,2]
[392354942,1761397327124,-500.0,0.00018337,2]
[392354943,1761397327155,-1566.84,0.00018337,2]
[392354944,1761397327326,-432.18770364,0.00018337,2]
[392354945,1761397329914,-1546.79229636,0.00018337,2]
[392354946,1761397329946,-500.0,0.00018337,2]
[392354947,1761397329977,-500.0,0.00018337,2]
[392354948,1761397330007,-500.0,0.00018337,2]
[392354949,1761397330039,-500.0,0.00018337,2]
[392354950,1761397330069,-500.0,0.00018337,2]
[392354951,1761397330098,-553.44,0.00018337,2]
[392354952,1761397330130,-299.54540728,0.00018337,2]
[392354953,1761397330284,-200.45459272,0.00018337,2]
[392354954,1761397401427,150.0,0.00017242,30]
[392354955,1761397402217,150.0,0.00018063,30]
[392354956,1761397402316,150.0,0.00018884,30]
[392354957,1761397402715,150.0,0.00019705,30]
[392354958,1761397406151,-150.0,0.00020526,30]
[392354959,1761397414931,-170.43,0.00021347,30]
[392354960,1761397414971,-720.0,0.00021517,20]
[392354961,1761397415023,-3446.72715707,0.00022,32]
[392354962,1761397415049,-198.84,0.00022168,30]
[392354963,1761397415111,-227.24,0.00022989,30]
[392354964,1761397418620,220.96867833,0.00018236,2]
[392354965,1761397437081,-74086.76284293,0.00023288,30]
[392354966,1761397479013,150.0,0.00017228,30]
[392354967,1761397479438,150.0,0.00018048,30]
[392354968,1761397479841,150.0,0.00018869,30]
[392354969,1761397480262,150.0,0.00019689,30]
[392354970,1761397554493,150.0,0.00017228,30]
[392354971,1761397554913,150.0,0.00018048,30]
[392354972,1761397555392,150.0,0.00018869,30]
[392354973,1761397555797,150.0,0.00019689,30]
[392354974,1761397556304,599.56049856,0.00018228,2]
[392354975,1761397572356,450.0,0.00018436,8]
[392354976,1761397572594,600.0,0.00018436,11]
[392354977,1761397572827,750.0,0.00018436,14]
[392354978,1761397573066,900.0,0.00018436,17]
[392354979,1761397573297,1129.5520297,0.00018437,20]
[392354980,1761397604193,-1200.0,0.00018298,2]
[392354981,1761397604224,-300.0,0.00018298,2]
[392354982,1761397604254,-966.51,0.00018299,2]
[392354983,1761397604287,-229.47131153,0.00018299,2]
[392354984,1761397604318,-1410.37,0.00018299,2]
[392354985,1761397604352,-872.77,0.00018299,2]
[392354986,1761397604563,-41.76737694,0.00018299,2]
[392354987,1761397604797,-458.23262306,0.00018299,2]
[392354988,1761397604828,-500.0,0.00018299,2]
[392354989,1761397604858,-1312.3,0.00018299,2]
[392354990,1761397604894,-500.0,0.00018299,2]
[392354991,1761397604943,-500.0,0.00018299,2]
[392354992,1761397604976,-481.16121672,0.00018299,2]
[392354993,1761397605009,-1147.34232044,0.00018299,2]
[392354994,1761397605187,-201.93767956,0.00018299,2]
[392354995,1761397605247,-2272.38,0.00018299,2]
[392354996,1761397605280,-500.0,0.00018299,2]
[392354997,1761397605313,-965.99,0.00018299,2]
[392354998,1761397605347,-500.0,0.00018299,2]
[392354999,1761397605378,-635.08,0.00018299,2]
[392355000,1761397605496,-253.11,0.00018299,2]
[392355001,1761397606882,-246.89,0.00018299,2]
[392355002,1761397606915,-500.0,0.00018299,2]
[392355003,1761397606946,-1953.24,0.00018299,2]
[392355004,1761397606974,-500.0,0.00018299,2]
[392355005,1761397607004,-341.13,0.00018299,2]
[392355006,1761397607099,-2917.49,0.00018299,2]
[392355007,1761397612863,-500.0,0.00018299,2]
[392355008,1761397612896,-1381.41,0.00018299,2]
[392355009,1761397612928,-500.0,0.00018299,2]
[392355010,1761397612958,-342.75680099,0.000183,2]
[392355011,1761397613061,-4551.67639802,0.000183,2]
[392355012,1761397613096,-10000.01,0.000183,2]
[392355014,1761397621924,-10000.01,0.000183,2]
[392355015,1761397622042,-10000.01,0.000183,2]
[392355017,1761397627135,150.0,0.00017235,30]
[392355018,1761397627992,150.0,0.00018055,30]
[392355019,1761397628409,150.0,0.00018876,30]
[392355020,1761397631614,5000.0,0.00018297,2]
[392355022,1761397632822,475.03,0.0001829,3]
[392355023,1761397646187,-300.0,0.00018299,2]
[392355024,1761397646220,-500.0,0.00018299,2]
[392355025,1761397646249,-500.0,0.00018299,2]
[392355026,1761397646277,-500.0,0.00018299,2]
[392355027,1761397646306,-500.0,0.00018299,2]
[392355028,1761397646336,-500.0,0.00018299,2]
[392355029,1761397646366,-650.0,0.00018299,2]
[392355030,1761397646394,-500.0,0.00018299,2]
[392355031,1761397646423,-1027.11,0.00018299,2]
[392355032,1761397646628,-45.79,0.00018299,2]
[392355033,1761397649036,-426.00450029,0.00018299,2]
[392355034,1761397649067,-500.56574223,0.00018299,2]
[392355035,1761397649096,-2572.14,0.00018299,2]
[392355036,1761397649125,-500.0,0.00018299,2]
[392355037,1761397649154,-993.01951496,0.00018299,2]
[392355038,1761397649270,-16.55048504,0.00018299,2]
[392355039,1761397652009,-10000.01,0.000183,2]
[392355040,1761397661517,3620.63852654,0.00018297,2]
[392355041,1761397663773,188.3,0.0001829,3]
[392355042,1761397674623,564.94,0.0001829,3]
[392355043,1761397676928,5000.0,0.00018297,2]
[392355044,1761397683640,161.13,0.00015135,2]
[392355045,1761397683917,161.13,0.00015135,2]
[392355046,1761397702120,150.0,0.00017235,30]
[392355047,1761397702232,150.0,0.00018056,30]
[392355048,1761397744394,300.0,0.00018297,2]
[392355049,1761397766209,500.0,0.00018297,2]
[392355050,1761397774790,150.0,0.00017266,30]
[392355051,1761397802582,300.0,0.00018297,2]
[392355052,1761397803375,300.0,0.00018297,2]
[392355053,1761397804045,300.0,0.00018297,2]
[392355054,1761397804317,1200.0,0.00018297,2]
[392355055,1761397804350,300.0,0.00018297,2]
[392355056,1761397805932,300.0,0.00018297,2]
[392355058,1761397809393,179.16,0.00018289,2]
[392355059,1761397816530,489.17257388,0.000182,2]
[392355060,1761397823985,3300.37,0.00018297,2]
[392355094,1761397832581,-216.30525412,0.00018298,2]
[392355096,1761397832590,-280.07427951,0.00018298,2]
[392355210,1761397843164,508.55112208,0.00017615,2]
[392355216,1761397844623,176.33923,0.00017519,2]
[392355222,1761397846735,317.410614,0.00017519,2]
[392355224,1761397846808,571.2,0.00018297,2]
[392355225,1761397848734,564.28553601,0.00017519,2]
[392355226,1761397850426,881.69615001,0.00017519,2]
[392355227,1761397855758,1094.73,0.00018297,2]
[392355228,1761397863150,500.0,0.00018297,2]
[392355229,1761397863608,300.0,0.00018296,2]
[392355230,1761397880284,500.0,0.00018297,2]
[392355231,1761397883852,505.57851843,0.00018297,2]
[392355232,1761397887707,1896.52,0.00018297,2]
[392355233,1761397898997,500.0,0.00018297,2]
[392355234,1761397899186,239.41,0.0001829,3]
[392355235,1761397906487,500.0,0.00018296,2]
[392355236,1761397907958,500.0,0.00018297,2]
[392355237,1761397909820,718.27,0.0001829,3]
[392355238,1761397910627,500.0,0.00018297,2]
[392355239,1761397912682,500.0,0.00018297,2]
[392355240,1761397917068,267.12324035,0.00018296,2]
[392355241,1761397921778,586.19613192,0.00018296,2]
[392355242,1761397921940,500.0,0.00018297,2]
[392355243,1761397922630,500.0,0.00018297,2]
[392355244,1761397924300,300.0,0.00018296,2]
[392355245,1761397924498,1782.37,0.00018297,2]
[392355247,1761397925981,-433.0841532,0.00018297,2]
[392355248,1761397926014,-500.0,0.00018297,2]
[392355249,1761397926044,-500.0,0.00018297,2]
[392355250,1761397926075,-500.0,0.00018297,2]
[392355251,1761397926106,-500.0,0.00018297,2]
[392355252,1761397926136,-175.20526435,0.00018297,2]
[392355253,1761397926171,-500.0,0.00018297,2]
[392355254,1761397926208,-500.0,0.00018297,2]
[392355255,1761397926243,-500.0,0.00018297,2]
[392355256,1761397926277,-500.0,0.00018297,2]
[392355257,1761397926308,-283.4311649,0.00018297,2]
[392355258,1761397926555,-216.5688351,0.00018297,2]
[392355259,1761397929801,500.0,0.00018296,2]
[392355260,1761397931801,629.69,0.00018297,2]
[392355261,1761397932027,-500.0,0.00018297,2]
[392355262,1761397932061,-500.0,0.00018297,2]
[392355263,1761397932097,-500.0,0.00018297,2]
[392355264,1761397932129,-500.0,0.00018297,2]
[392355265,1761397932165,-500.0,0.00018297,2]
[392355266,1761397932198,-500.0,0.00018297,2]
[392355267,1761397932232,-500.0,0.00018297,2]
[392355268,1761397932265,-500.0,0.00018297,2]
[392355269,1761397932296,-500.0,0.00018297,2]
[392355270,1761397932328,-500.0,0.00018297,2]
[392355271,1761397932560,-0.01,0.00018297,2]
[392355272,1761397938028,-499.99,0.00018297,2]
[392355273,1761397938058,-500.0,0.00018297,2]
[392355274,1761397938090,-500.0,0.00018297,2]
[392355275,1761397938123,-500.0,0.00018297,2]
[392355276,1761397938155,-500.0,0.00018297,2]
[392355277,1761397938187,-500.0,0.00018297,2]
[392355278,1761397938218,-500.0,0.00018297,2]
[392355279,1761397938250,-500.0,0.00018297,2]
[392355280,1761397938283,-500.0,0.00018297,2]
[392355281,1761397938314,-500.0,0.00018297,2]
[392355282,1761397938489,-0.03,0.00018297,2]
[392355283,1761397940848,242.52,0.0001829,3]
[392355284,1761397941103,2678.9699051,0.00018297,2]
[392355285,1761397941536,587.07,0.00018297,2]
[392355286,1761397946023,500.0,0.00018296,2]
[392355287,1761397946786,926.24,0.00018296,2]
[392355288,1761397950435,500.0,0.00018297,2]
[392355289,1761397958339,1200.0,0.00018296,2]
[392355290,1761397958833,193.34759353,0.00018199,2]
[392355291,1761397959148,500.0,0.00018297,2]
[392355292,1761397962427,1351.61,0.00018296,2]
[392355293,1761397965747,1644.77,0.00018297,2]
[392355294,1761397966270,516.42685266,0.00018296,2]
[392355296,1761397967886,500.0,0.00018296,2]
[392355297,1761397972918,500.0,0.00018297,2]
[392355298,1761397973029,500.0,0.00018296,2]
[392355299,1761397975699,836.4,0.00018296,2]
[392355300,1761397978218,500.0,0.00018297,2]
[392355301,1761397979576,500.0,0.00018296,2]
[392355302,1761397982908,550.34154511,0.00018297,2]
[392355303,1761397983436,1501.56,0.00018296,2]
[392355304,1761397984217,300.0,0.00018297,2]
[392355305,1761397984369,1743.66,0.00018297,2]
[392355306,1761397991245,500.0,0.00018296,2]
[392355307,1761397991947,640.35,0.00018297,2]
[392355308,1761397992714,500.0,0.00018296,2]
[392355309,1761397998287,370.09670965,0.00017519,2]
[392355310,1761397999191,500.0,0.00018296,2]
[392355311,1761398002301,500.0,0.00018296,2]
[392355312,1761398002664,524.23,0.00018296,2]
[392355313,1761398003938,500.0,0.00018297,2]
[392355314,1761398004941,500.0,0.00018296,2]
[392355315,1761398006114,500.0,0.00018296,2]
[392355316,1761398008735,500.0,0.00018297,2]
[392355317,1761398010534,500.0,0.00018296,2]
[392355318,1761398012762,500.0,0.00018296,2]
[392355319,1761398012994,943.21,0.00018296,2]
[392355320,1761398013927,1164.76,0.00018296,2]
[392355321,1761398014168,1245.73,0.00018297,2]
[392355322,1761398023244,500.0,0.00018296,2]
[392355323,1761398025126,1293.06,0.00018296,2]
[392355324,1761398028862,500.0,0.00018297,2]
[392355325,1761398030325,196.0,0.00016,2]
[392355326,1761398030626,196.0,0.00016111,2]
[392355327,1761398030952,196.0,0.00016221,2]
[392355328,1761398031352,196.0,0.00016332,2]
[392355329,1761398031643,196.0,0.00016442,2]
[392355330,1761398031935,196.0,0.00016553,2]
[392355331,1761398032251,196.0,0.00016663,2]
[392355332,1761398032643,196.0,0.00016774,2]
[392355333,1761398033252,196.0,0.00016884,2]
[392355334,1761398033297,196.0,0.00016995,2]
[392355335,1761398033508,196.0,0.00017105,2]
[392355336,1761398033852,196.0,0.00017216,2]
[392355337,1761398034228,196.0,0.00017326,2]
[392355338,1761398034517,196.0,0.00017437,2]
[392355339,1761398034916,196.0,0.00017547,2]
[392355340,1761398035081,2177.7,0.00018296,2]
[392355341,1761398035283,196.0,0.00017658,2]
[392355342,1761398035426,500.0,0.00018296,2]
[392355343,1761398035618,196.0,0.00017768,2]
[392355344,1761398036011,196.0,0.00017879,2]
[392355345,1761398036308,196.0,0.00017989,2]
[392355346,1761398036699,247.78659622,0.000181,2]
[392355347,1761398038747,500.0,0.00018296,2]
[392355348,1761398040130,500.0,0.00018297,2]
[392355349,1761398042824,925.74,0.00018296,2]
[392355350,1761398043742,300.0,0.00018297,2]
[392355351,1761398045090,500.0,0.00018296,2]
[392355352,1761398050928,608.62,0.00018296,2]
[392355353,1761398054240,500.0,0.00018297,2]
[392355354,1761398054281,500.0,0.00018296,2]
[392355355,1761398055004,500.0,0.00018296,2]
[392355356,1761398056035,1000.0,0.00018,5]
[392355357,1761398061504,500.0,0.00018297,2]
[392355358,1761398061757,1871.85,0.00018296,2]
[392355359,1761398062431,500.0,0.00018297,2]
[392355360,1761398065001,1015.66,0.00018296,2]
[392355361,1761398065132,500.0,0.00018296,2]
[392355362,1761398067324,500.0,0.00018297,2]
[392355363,1761398068536,508.88,0.00018296,2]
[392355364,1761398070503,370000.0,0.00018199,2]
[392355365,1761398070609,3122.84,0.00018296,2]
[392355366,1761398072758,297.24502937,0.00018297,2]
[392355367,1761398072789,500.0,0.00018297,2]
[392355368,1761398072823,500.0,0.00018297,2]
[392355369,1761398072854,500.0,0.00018297,2]
[392355370,1761398072885,500.0,0.00018297,2]
[392355371,1761398072916,500.0,0.00018297,2]
[392355372,1761398072947,500.0,0.00018297,2]
[392355373,1761398073125,500.0,0.00018297,2]
[392355374,1761398073161,500.0,0.00018297,2]
[392355375,1761398073194,500.0,0.00018297,2]